[Event "Titled Tuesday Blitz June 21 Late 2022"]
[White "Rychkov, Roman"]
[Black "Fiol, Fabrice"]
[WhiteFideId "30985595"]
[BlackFideId "611670"]
[WhiteElo "2294"]
[BlackElo "2472"]
[Result "1-0"]
[Round "04"]
[TimeControl "180+1"]
[Date "2022.06.22"]
[WhiteClock "0:00:18"]
[BlackClock "0:00:18"]

1. e4 {[%clk 0:03:00]}  c5 {[%clk 0:02:59]} 2. Nf3 {[%clk 0:03:01]}  e6 {[%clk 0:02:58]} 3. c4 {[%clk 0:03:00]}  Nc6 {[%clk 0:02:59]} 4. Nc3 {[%clk 0:03:01]}  a6 {[%clk 0:02:56]} 5. a3 {[%clk 0:02:59]}  Qc7 {[%clk 0:02:52]} 6. d4 {[%clk 0:02:59]}  cxd4 {[%clk 0:02:52]} 7. Nxd4 {[%clk 0:03:00]}  Nf6 {[%clk 0:02:51]} 8. Be3 {[%clk 0:02:59]}  Ne5 {[%clk 0:02:50]} 9. Rc1 {[%clk 0:02:56]}  d6 {[%clk 0:02:50]} 10. h3 {[%clk 0:02:56]}  Be7 {[%clk 0:02:49]} 11. f4 {[%clk 0:02:52]}  Ng6 {[%clk 0:02:49]} 12. Bd3 {[%clk 0:02:46]}  b6 {[%clk 0:02:48]} 13. O-O {[%clk 0:02:46]}  Bb7 {[%clk 0:02:48]} 14. Qe2 {[%clk 0:02:40]}  O-O {[%clk 0:02:39]} 15. b4 {[%clk 0:02:40]}  e5 {[%clk 0:02:30]} 16. Nd5 {[%clk 0:02:36]}  Nxd5 {[%clk 0:02:21]} 17. cxd5 {[%clk 0:02:36]}  Qd8 {[%clk 0:02:21]} 18. Nc6 {[%clk 0:02:36]}  Bxc6 {[%clk 0:02:21]} 19. Rxc6 {[%clk 0:02:37]}  exf4 {[%clk 0:02:21]} 20. Bxb6 {[%clk 0:02:36]}  Qe8 {[%clk 0:02:16]} 21. Bxa6 {[%clk 0:02:31]}  Ne5 {[%clk 0:02:08]} 22. Rc3 {[%clk 0:02:11]}  f3 {[%clk 0:01:57]} 23. gxf3 {[%clk 0:02:00]}  Bf6 {[%clk 0:01:53]} 24. Bb5 {[%clk 0:01:52]}  Qb8 {[%clk 0:01:50]} 25. Bf2 {[%clk 0:01:40]}  Ng6 {[%clk 0:01:43]} 26. Rb3 {[%clk 0:01:33]}  Nf4 {[%clk 0:01:43]} 27. Qc4 {[%clk 0:01:22]}  Rc8 {[%clk 0:01:38]} 28. Bc6 {[%clk 0:01:22]}  Nxh3+ {[%clk 0:01:32]} 29. Kh2 {[%clk 0:01:22]}  Nxf2 {[%clk 0:01:26]} 30. Rxf2 {[%clk 0:01:21]}  Qa7 {[%clk 0:01:23]} 31. Rg2 {[%clk 0:01:18]}  Be5+ {[%clk 0:01:07]} 32. Kh1 {[%clk 0:01:18]}  Qe7 {[%clk 0:01:05]} 33. Kg1 {[%clk 0:01:09]}  Qh4 {[%clk 0:00:59]} 34. Qf1 {[%clk 0:01:00]}  Bd4+ {[%clk 0:00:56]} 35. Rf2 {[%clk 0:00:58]}  Rab8 {[%clk 0:00:50]} 36. Kg2 {[%clk 0:00:52]}  Qg5+ {[%clk 0:00:49]} 37. Kh1 {[%clk 0:00:49]}  Qh4+ {[%clk 0:00:46]} 38. Kg2 {[%clk 0:00:49]}  f5 {[%clk 0:00:42]} 39. f4 {[%clk 0:00:47]}  fxe4 {[%clk 0:00:37]} 40. Rh3 {[%clk 0:00:44]}  Qf6 {[%clk 0:00:24]} 41. Rd2 {[%clk 0:00:40]}  e3 {[%clk 0:00:24]} 42. Re2 {[%clk 0:00:35]}  Rf8 {[%clk 0:00:23]} 43. Rhxe3 {[%clk 0:00:28]}  Bxe3 {[%clk 0:00:23]} 44. Rxe3 {[%clk 0:00:29]}  Qb2+ {[%clk 0:00:21]} 45. Kg3 {[%clk 0:00:27]}  Rf6 {[%clk 0:00:21]} 46. Qe2 {[%clk 0:00:21]}  Qa1 {[%clk 0:00:17]} 47. Re8+ {[%clk 0:00:20]}  Rf8 {[%clk 0:00:17]} 48. Qe6+ {[%clk 0:00:20]}  Kh8 {[%clk 0:00:18]} 49. Rxb8 {[%clk 0:00:18]}  Rxb8 {[%clk 0:00:17]} 50. Qxd6 {[%clk 0:00:18]}  Qb2 {[%clk 0:00:18]} 51. Qxb8# {[%clk 0:00:18]} 1-0


[Site "https://www.chess.com"]

[Event "Titled Tuesday Blitz June 21 Late 2022"]
[White "Sanchez Alarcon, Juan"]
[Black "Peatman, Carter"]
[WhiteFideId "3401332"]
[BlackFideId "2096480"]
[WhiteElo "2164"]
[BlackElo "2469"]
[Result "0-1"]
[Round "04"]
[TimeControl "180+1"]
[Date "2022.06.22"]
[WhiteClock "0:01:16"]
[BlackClock "0:00:26"]

1. e4 {[%clk 0:03:00]}  e5 {[%clk 0:02:52]} 2. Nf3 {[%clk 0:02:59]}  Nf6 {[%clk 0:02:51]} 3. Nxe5 {[%clk 0:02:59]}  d6 {[%clk 0:02:51]} 4. Nf3 {[%clk 0:02:59]}  Nxe4 {[%clk 0:02:51]} 5. d4 {[%clk 0:02:59]}  d5 {[%clk 0:02:50]} 6. Bd3 {[%clk 0:02:58]}  Nd6 {[%clk 0:02:46]} 7. O-O {[%clk 0:02:57]}  Be7 {[%clk 0:02:44]} 8. Bf4 {[%clk 0:02:53]}  O-O {[%clk 0:02:41]} 9. c3 {[%clk 0:02:47]}  Nd7 {[%clk 0:02:36]} 10. Re1 {[%clk 0:02:45]}  Re8 {[%clk 0:02:33]} 11. Nbd2 {[%clk 0:02:43]}  Nf8 {[%clk 0:02:29]} 12. Qc2 {[%clk 0:02:39]}  g6 {[%clk 0:02:27]} 13. Ne5 {[%clk 0:02:32]}  Ne6 {[%clk 0:02:25]} 14. Bg3 {[%clk 0:02:31]}  Ng7 {[%clk 0:02:26]} 15. h3 {[%clk 0:02:27]}  Bf5 {[%clk 0:02:26]} 16. Re2 {[%clk 0:02:20]}  Bxd3 {[%clk 0:02:18]} 17. Qxd3 {[%clk 0:02:19]}  Ngf5 {[%clk 0:02:19]} 18. Bh2 {[%clk 0:02:19]}  Bf6 {[%clk 0:02:09]} 19. Rae1 {[%clk 0:02:17]}  Re7 {[%clk 0:01:46]} 20. Ng4 {[%clk 0:02:08]}  Bg7 {[%clk 0:01:42]} 21. Be5 {[%clk 0:01:58]}  Re6 {[%clk 0:01:22]} 22. Bxg7 {[%clk 0:01:55]}  Rxe2 {[%clk 0:01:07]} 23. Rxe2 {[%clk 0:01:54]}  Kxg7 {[%clk 0:01:08]} 24. Qf3 {[%clk 0:01:48]}  Qd7 {[%clk 0:01:04]} 25. Ne5 {[%clk 0:01:46]}  Qb5 {[%clk 0:00:49]} 26. Nf1 {[%clk 0:01:36]}  Re8 {[%clk 0:00:38]} 27. Ne3 {[%clk 0:01:27]}  c6 {[%clk 0:00:33]} 28. Nxf5+ {[%clk 0:01:21]}  Nxf5 {[%clk 0:00:29]} 29. Rd2 {[%clk 0:01:18]}  f6 {[%clk 0:00:26]} 30. Ng4 {[%clk 0:01:17]}  Re1+ {[%clk 0:00:25]} 31. Kh2 {[%clk 0:01:16]}  Qf1 {[%clk 0:00:26]} 0-1


[Site "https://www.chess.com"]

[Event "Titled Tuesday Blitz June 21 Late 2022"]
[White "Sanchez, Robert"]
[Black "Mikhalsky, Vladimir"]
[WhiteFideId "2034360"]
[BlackFideId "14144352"]
[WhiteElo "2016"]
[BlackElo "2301"]
[Result "0-1"]
[Round "04"]
[TimeControl "180+1"]
[Date "2022.06.22"]
[WhiteClock "0:01:27"]
[BlackClock "0:00:43"]

1. e4 {[%clk 0:03:00]}  c5 {[%clk 0:02:56]} 2. Nf3 {[%clk 0:03:00]}  Nc6 {[%clk 0:02:55]} 3. d4 {[%clk 0:03:01]}  cxd4 {[%clk 0:02:54]} 4. Nxd4 {[%clk 0:03:02]}  Nf6 {[%clk 0:02:53]} 5. Nc3 {[%clk 0:03:02]}  e5 {[%clk 0:02:54]} 6. Ndb5 {[%clk 0:03:02]}  d6 {[%clk 0:02:54]} 7. Bg5 {[%clk 0:03:02]}  a6 {[%clk 0:02:52]} 8. Bxf6 {[%clk 0:03:02]}  gxf6 {[%clk 0:02:52]} 9. Na3 {[%clk 0:03:02]}  f5 {[%clk 0:02:51]} 10. Bd3 {[%clk 0:02:59]}  fxe4 {[%clk 0:02:47]} 11. Bxe4 {[%clk 0:02:59]}  Bg7 {[%clk 0:02:44]} 12. Nc4 {[%clk 0:02:52]}  Nd4 {[%clk 0:02:38]} 13. O-O {[%clk 0:02:42]}  O-O {[%clk 0:02:36]} 14. a4 {[%clk 0:02:41]}  f5 {[%clk 0:02:26]} 15. Bd5+ {[%clk 0:02:42]}  Kh8 {[%clk 0:02:26]} 16. Ne2 {[%clk 0:02:33]}  Nxe2+ {[%clk 0:02:15]} 17. Qxe2 {[%clk 0:02:31]}  Rf6 {[%clk 0:02:08]} 18. a5 {[%clk 0:02:29]}  Rg6 {[%clk 0:02:04]} 19. Rfd1 {[%clk 0:02:26]}  e4 {[%clk 0:01:55]} 20. c3 {[%clk 0:02:18]}  Qg5 {[%clk 0:01:46]} 21. f3 {[%clk 0:02:14]}  Be5 {[%clk 0:01:23]} 22. Nxe5 {[%clk 0:02:09]}  dxe5 {[%clk 0:01:23]} 23. Rd2 {[%clk 0:01:42]}  e3 {[%clk 0:01:18]} 24. Rd3 {[%clk 0:01:39]}  f4 {[%clk 0:01:18]} 25. Be4 {[%clk 0:01:37]}  Bf5 {[%clk 0:01:10]} 26. Bxf5 {[%clk 0:01:36]}  Qxf5 {[%clk 0:01:10]} 27. Rad1 {[%clk 0:01:36]}  Rag8 {[%clk 0:01:07]} 28. Rd8 {[%clk 0:01:34]}  Rxd8 {[%clk 0:00:56]} 29. Rxd8+ {[%clk 0:01:33]}  Rg8 {[%clk 0:00:55]} 30. Rxg8+ {[%clk 0:01:28]}  Kxg8 {[%clk 0:00:55]} 31. Qc4+ {[%clk 0:01:29]}  Kg7 {[%clk 0:00:48]} 32. Qc7+ {[%clk 0:01:29]}  Kh6 {[%clk 0:00:45]} 33. Qxb7 {[%clk 0:01:27]}  Qb1# {[%clk 0:00:43]} 0-1


[Site "https://www.chess.com"]

[Event "Titled Tuesday Blitz June 21 Late 2022"]
[White "Semenenko, Dmytry"]
[Black "Carrasco Miranda, Andres"]
[WhiteFideId "14118645"]
[BlackFideId "3405990"]
[WhiteElo "2113"]
[BlackElo "2177"]
[Result "1-0"]
[Round "04"]
[TimeControl "180+1"]
[Date "2022.06.22"]
[WhiteClock "0:01:02"]
[BlackClock "0:00:01"]

1. Nf3 {[%clk 0:03:00]}  Nf6 {[%clk 0:02:58]} 2. c4 {[%clk 0:03:00]}  g6 {[%clk 0:02:56]} 3. d4 {[%clk 0:03:00]}  Bg7 {[%clk 0:02:56]} 4. Nc3 {[%clk 0:03:01]}  d5 {[%clk 0:02:56]} 5. Qb3 {[%clk 0:03:00]}  dxc4 {[%clk 0:02:54]} 6. Qxc4 {[%clk 0:03:00]}  O-O {[%clk 0:02:55]} 7. e4 {[%clk 0:03:01]}  Nc6 {[%clk 0:02:53]} 8. d5 {[%clk 0:03:00]}  Na5 {[%clk 0:02:53]} 9. Qa4 {[%clk 0:03:00]}  c6 {[%clk 0:02:42]} 10. dxc6 {[%clk 0:03:00]}  Nxc6 {[%clk 0:02:39]} 11. Be2 {[%clk 0:03:01]}  Nd7 {[%clk 0:02:13]} 12. O-O {[%clk 0:02:58]}  Nb6 {[%clk 0:02:12]} 13. Qc2 {[%clk 0:02:58]}  Bg4 {[%clk 0:02:11]} 14. Be3 {[%clk 0:02:57]}  Bxf3 {[%clk 0:02:09]} 15. Bxf3 {[%clk 0:02:57]}  Nd4 {[%clk 0:02:10]} 16. Bxd4 {[%clk 0:02:55]}  Qxd4 {[%clk 0:02:09]} 17. Rfd1 {[%clk 0:02:53]}  Qc5 {[%clk 0:02:09]} 18. Qb3 {[%clk 0:02:48]}  Qc4 {[%clk 0:02:05]} 19. Nd5 {[%clk 0:02:39]}  Qxb3 {[%clk 0:02:00]} 20. Nxe7+ {[%clk 0:02:39]}  Kh8 {[%clk 0:02:01]} 21. axb3 {[%clk 0:02:40]}  Bxb2 {[%clk 0:02:01]} 22. Rab1 {[%clk 0:02:40]}  Be5 {[%clk 0:01:46]} 23. Rbc1 {[%clk 0:02:32]}  Rfd8 {[%clk 0:01:42]} 24. Nd5 {[%clk 0:02:27]}  Nxd5 {[%clk 0:01:35]} 25. exd5 {[%clk 0:02:27]}  Bd6 {[%clk 0:01:35]} 26. Rc4 {[%clk 0:02:25]}  a5 {[%clk 0:01:31]} 27. h4 {[%clk 0:02:21]}  Kg7 {[%clk 0:01:30]} 28. h5 {[%clk 0:02:20]}  Kf6 {[%clk 0:01:29]} 29. hxg6 {[%clk 0:02:18]}  hxg6 {[%clk 0:01:29]} 30. g4 {[%clk 0:02:15]}  b5 {[%clk 0:01:20]} 31. Rc6 {[%clk 0:02:15]}  Ke5 {[%clk 0:01:20]} 32. Re1+ {[%clk 0:02:13]}  Kf4 {[%clk 0:01:18]} 33. Kg2 {[%clk 0:02:11]}  a4 {[%clk 0:01:16]} 34. Re4+ {[%clk 0:02:11]}  Kg5 {[%clk 0:01:16]} 35. bxa4 {[%clk 0:01:54]}  bxa4 {[%clk 0:01:14]} 36. Rc2 {[%clk 0:01:48]}  a3 {[%clk 0:01:11]} 37. Ra2 {[%clk 0:01:48]}  Rh8 {[%clk 0:01:06]} 38. Be2 {[%clk 0:01:46]}  Rh2+ {[%clk 0:00:58]} 39. Kg1 {[%clk 0:01:46]}  Rh4 {[%clk 0:00:50]} 40. f3 {[%clk 0:01:35]}  Rb8 {[%clk 0:00:49]} 41. Bd3 {[%clk 0:01:30]}  Rb2 {[%clk 0:00:44]} 42. Rxb2 {[%clk 0:01:29]}  axb2 {[%clk 0:00:45]} 43. Re2 {[%clk 0:01:29]}  Bc5+ {[%clk 0:00:37]} 44. Kg2 {[%clk 0:01:28]}  Bd4 {[%clk 0:00:37]} 45. Kg3 {[%clk 0:01:21]}  Rh8 {[%clk 0:00:33]} 46. f4+ {[%clk 0:01:21]}  Kf6 {[%clk 0:00:34]} 47. Re4 {[%clk 0:01:19]}  Bc3 {[%clk 0:00:31]} 48. Rc4 {[%clk 0:01:18]}  Bd2 {[%clk 0:00:30]} 49. d6 {[%clk 0:01:15]}  Rd8 {[%clk 0:00:30]} 50. Rc6 {[%clk 0:01:14]}  Bb4 {[%clk 0:00:25]} 51. d7+ {[%clk 0:01:04]}  Ke7 {[%clk 0:00:25]} 52. Rb6 {[%clk 0:01:03]}  Be1+ {[%clk 0:00:24]} 53. Kf3 {[%clk 0:01:02]}  Rxd7 {[%clk 0:00:24]} 54. Ke2 {[%clk 0:01:03]}  Bg3 {[%clk 0:00:22]} 55. Rxb2 {[%clk 0:01:02]}  Bxf4 {[%clk 0:00:21]} 56. Rb4 {[%clk 0:01:02]}  Be5 {[%clk 0:00:20]} 57. Re4 {[%clk 0:01:03]}  Kd6 {[%clk 0:00:20]} 58. Ke3 {[%clk 0:01:02]}  f5 {[%clk 0:00:20]} 59. gxf5 {[%clk 0:01:02]}  gxf5 {[%clk 0:00:21]} 60. Rc4 {[%clk 0:01:03]}  Re7 {[%clk 0:00:21]} 61. Kf3 {[%clk 0:01:03]}  Kd5 {[%clk 0:00:20]} 62. Ra4 {[%clk 0:01:03]}  Bd6 {[%clk 0:00:20]} 63. Bxf5 {[%clk 0:01:02]}  Rf7 {[%clk 0:00:18]} 64. Kg4 {[%clk 0:01:03]}  Ke5 {[%clk 0:00:18]} 65. Re4+ {[%clk 0:01:02]}  Kd5 {[%clk 0:00:16]} 66. Re2 {[%clk 0:01:01]}  Rg7+ {[%clk 0:00:16]} 67. Kh5 {[%clk 0:01:02]}  Bf4 {[%clk 0:00:15]} 68. Bg6 {[%clk 0:01:01]}  Kd4 {[%clk 0:00:14]} 69. Re4+ {[%clk 0:01:01]}  Kd5 {[%clk 0:00:11]} 70. Rxf4 {[%clk 0:01:02]}  Ke5 {[%clk 0:00:11]} 71. Rf5+ {[%clk 0:01:02]}  Ke6 {[%clk 0:00:11]} 72. Kg5 {[%clk 0:01:02]}  Ra7 {[%clk 0:00:11]} 73. Rf6+ {[%clk 0:01:03]}  Ke5 {[%clk 0:00:11]} 74. Rf5+ {[%clk 0:01:03]}  Ke6 {[%clk 0:00:11]} 75. Rf4 {[%clk 0:01:03]}  Ke5 {[%clk 0:00:11]} 76. Re4+ {[%clk 0:01:03]}  Kd5 {[%clk 0:00:10]} 77. Re8 {[%clk 0:01:03]}  Kd6 {[%clk 0:00:09]} 78. Bf5 {[%clk 0:01:02]}  Ra1 {[%clk 0:00:09]} 79. Re6+ {[%clk 0:01:02]}  Kd5 {[%clk 0:00:08]} 80. Kf6 {[%clk 0:01:02]}  Rf1 {[%clk 0:00:09]} 81. Re5+ {[%clk 0:01:02]}  Kd4 {[%clk 0:00:08]} 82. Re8 {[%clk 0:01:03]}  Rf2 {[%clk 0:00:07]} 83. Rd8+ {[%clk 0:01:03]}  Kc5 {[%clk 0:00:06]} 84. Ke5 {[%clk 0:01:03]}  Re2+ {[%clk 0:00:04]} 85. Be4 {[%clk 0:01:04]}  Re1 {[%clk 0:00:05]} 86. Rc8+ {[%clk 0:01:03]}  Kb4 {[%clk 0:00:01]} 87. Kd4 {[%clk 0:01:04]}  Ka3 {[%clk 0:00:01]} 88. Bd3 {[%clk 0:01:04]}  Kb2 {[%clk 0:00:02]} 89. Rb8+ {[%clk 0:01:03]}  Ka1 {[%clk 0:00:02]} 90. Kc3 {[%clk 0:01:02]}  Rc1+ {[%clk 0:00:01]} 91. Bc2 {[%clk 0:01:03]}  Rb1 {[%clk 0:00:01]} 92. Rxb1+ {[%clk 0:01:02]} 1-0


[Site "https://www.chess.com"]

[Event "Titled Tuesday Blitz June 21 Late 2022"]
[White "Shimanov, Aleksandr"]
[Black "Bayo Milagro, Alvaro"]
[WhiteFideId "4198603"]
[BlackFideId "22275240"]
[WhiteElo "2605"]
[BlackElo "2270"]
[Result "1-0"]
[Round "04"]
[TimeControl "180+1"]
[Date "2022.06.21"]
[WhiteClock "0:00:07"]
[BlackClock "0:00:10"]

1. e4 {[%clk 0:03:00]}  e5 {[%clk 0:02:59]} 2. Nf3 {[%clk 0:03:00]}  Nc6 {[%clk 0:02:59]} 3. Bb5 {[%clk 0:03:01]}  a6 {[%clk 0:02:59]} 4. Ba4 {[%clk 0:03:01]}  Nf6 {[%clk 0:03:00]} 5. Nc3 {[%clk 0:03:01]}  Bb4 {[%clk 0:02:48]} 6. d3 {[%clk 0:02:56]}  d6 {[%clk 0:02:44]} 7. O-O {[%clk 0:02:53]}  b5 {[%clk 0:02:41]} 8. Bb3 {[%clk 0:02:53]}  Na5 {[%clk 0:02:41]} 9. Ne2 {[%clk 0:02:48]}  Bc5 {[%clk 0:02:37]} 10. Ng3 {[%clk 0:02:35]}  O-O {[%clk 0:02:34]} 11. Bg5 {[%clk 0:02:34]}  Nxb3 {[%clk 0:02:32]} 12. axb3 {[%clk 0:02:34]}  h6 {[%clk 0:02:32]} 13. Bh4 {[%clk 0:02:27]}  Bg4 {[%clk 0:02:28]} 14. Bxf6 {[%clk 0:01:45]}  Qxf6 {[%clk 0:02:26]} 15. h3 {[%clk 0:01:45]}  Bxf3 {[%clk 0:02:26]} 16. Qxf3 {[%clk 0:01:46]}  Qxf3 {[%clk 0:02:26]} 17. gxf3 {[%clk 0:01:47]}  a5 {[%clk 0:02:21]} 18. Nf5 {[%clk 0:01:43]}  Kh7 {[%clk 0:02:17]} 19. Ra2 {[%clk 0:01:39]}  g6 {[%clk 0:02:13]} 20. Ne7 {[%clk 0:01:36]}  a4 {[%clk 0:02:03]} 21. Rfa1 {[%clk 0:01:30]}  Rae8 {[%clk 0:01:54]} 22. Nd5 {[%clk 0:01:28]}  axb3 {[%clk 0:01:47]} 23. cxb3 {[%clk 0:01:29]}  f5 {[%clk 0:01:42]} 24. Nxc7 {[%clk 0:01:14]}  Re7 {[%clk 0:01:43]} 25. Nd5 {[%clk 0:01:14]}  Ref7 {[%clk 0:01:43]} 26. exf5 {[%clk 0:00:33]}  Rxf5 {[%clk 0:01:42]} 27. f4 {[%clk 0:00:34]}  exf4 {[%clk 0:01:38]} 28. Nc3 {[%clk 0:00:34]}  Bd4 {[%clk 0:01:11]} 29. Re1 {[%clk 0:00:29]}  R8f7 {[%clk 0:01:04]} 30. Re4 {[%clk 0:00:29]}  Bc5 {[%clk 0:00:59]} 31. b4 {[%clk 0:00:29]}  Ba7 {[%clk 0:00:52]} 32. Ra6 {[%clk 0:00:26]}  Rg5+ {[%clk 0:00:41]} 33. Kf1 {[%clk 0:00:26]}  f3 {[%clk 0:00:41]} 34. Rxd6 {[%clk 0:00:19]}  Rg2 {[%clk 0:00:38]} 35. d4 {[%clk 0:00:19]}  Rh2 {[%clk 0:00:38]} 36. Kg1 {[%clk 0:00:19]}  Rg2+ {[%clk 0:00:38]} 37. Kf1 {[%clk 0:00:19]}  Rh2 {[%clk 0:00:38]} 38. Ke1 {[%clk 0:00:20]}  Rxh3 {[%clk 0:00:38]} 39. Nxb5 {[%clk 0:00:18]}  Rh1+ {[%clk 0:00:33]} 40. Kd2 {[%clk 0:00:18]}  Rf1 {[%clk 0:00:34]} 41. Ke3 {[%clk 0:00:18]}  Re1+ {[%clk 0:00:33]} 42. Kd3 {[%clk 0:00:18]}  Rb1 {[%clk 0:00:29]} 43. Rde6 {[%clk 0:00:16]}  Bb8 {[%clk 0:00:20]} 44. Re8 {[%clk 0:00:16]}  Bh2 {[%clk 0:00:19]} 45. R4e7 {[%clk 0:00:14]}  Kg7 {[%clk 0:00:18]} 46. Nc3 {[%clk 0:00:05]}  Rxb2 {[%clk 0:00:18]} 47. Nd1 {[%clk 0:00:05]}  Rxb4 {[%clk 0:00:18]} 48. Rxf7+ {[%clk 0:00:05]}  Kxf7 {[%clk 0:00:18]} 49. Re3 {[%clk 0:00:05]}  Rb3+ {[%clk 0:00:17]} 50. Ke4 {[%clk 0:00:06]}  Rxe3+ {[%clk 0:00:17]} 51. fxe3 {[%clk 0:00:03]}  Bb8 {[%clk 0:00:13]} 52. Kxf3 {[%clk 0:00:03]}  h5 {[%clk 0:00:13]} 53. e4 {[%clk 0:00:04]}  g5 {[%clk 0:00:14]} 54. e5 {[%clk 0:00:04]}  g4+ {[%clk 0:00:13]} 55. Kf4 {[%clk 0:00:04]}  Ke6 {[%clk 0:00:14]} 56. Ne3 {[%clk 0:00:04]}  Bc7 {[%clk 0:00:11]} 57. d5+ {[%clk 0:00:04]}  Kd7 {[%clk 0:00:12]} 58. Nf5 {[%clk 0:00:03]}  Ke8 {[%clk 0:00:10]} 59. d6 {[%clk 0:00:03]}  Bb8 {[%clk 0:00:08]} 60. e6 {[%clk 0:00:02]}  Bxd6+ {[%clk 0:00:08]} 61. Nxd6+ {[%clk 0:00:02]}  Ke7 {[%clk 0:00:09]} 62. Ke5 {[%clk 0:00:03]}  g3 {[%clk 0:00:09]} 63. Nf5+ {[%clk 0:00:03]}  Ke8 {[%clk 0:00:09]} 64. Nxg3 {[%clk 0:00:04]}  h4 {[%clk 0:00:09]} 65. Ne4 {[%clk 0:00:03]}  h3 {[%clk 0:00:10]} 66. Nf6+ {[%clk 0:00:04]}  Kd8 {[%clk 0:00:09]} 67. Ng4 {[%clk 0:00:04]}  Ke7 {[%clk 0:00:09]} 68. Kf5 {[%clk 0:00:05]}  Ke8 {[%clk 0:00:08]} 69. Kf6 {[%clk 0:00:05]}  Kf8 {[%clk 0:00:09]} 70. e7+ {[%clk 0:00:06]}  Ke8 {[%clk 0:00:10]} 71. Nh2 {[%clk 0:00:07]} 1-0


[Site "https://www.chess.com"]

[Event "Titled Tuesday Blitz June 21 Late 2022"]
[White "Sibilio, Mario"]
[Black "Fishbein, Alexander"]
[WhiteFideId "800422"]
[BlackFideId "2000377"]
[WhiteElo "2296"]
[BlackElo "2442"]
[Result "0-1"]
[Round "04"]
[TimeControl "180+1"]
[Date "2022.06.22"]
[WhiteClock "0:00:35"]
[BlackClock "0:00:47"]

1. Nf3 {[%clk 0:02:59]}  Nf6 {[%clk 0:02:58]} 2. d4 {[%clk 0:02:57]}  c5 {[%clk 0:02:57]} 3. d5 {[%clk 0:02:57]}  b5 {[%clk 0:02:57]} 4. c4 {[%clk 0:02:56]}  b4 {[%clk 0:02:56]} 5. a3 {[%clk 0:02:54]}  g6 {[%clk 0:02:54]} 6. axb4 {[%clk 0:02:48]}  cxb4 {[%clk 0:02:55]} 7. Be3 {[%clk 0:02:47]}  Bg7 {[%clk 0:02:51]} 8. Bd4 {[%clk 0:02:46]}  O-O {[%clk 0:02:49]} 9. Nbd2 {[%clk 0:02:43]}  a5 {[%clk 0:02:46]} 10. e3 {[%clk 0:02:35]}  d6 {[%clk 0:02:46]} 11. Be2 {[%clk 0:02:34]}  Nbd7 {[%clk 0:02:41]} 12. O-O {[%clk 0:02:29]}  Nc5 {[%clk 0:02:41]} 13. Nb3 {[%clk 0:02:27]}  Nxb3 {[%clk 0:02:37]} 14. Qxb3 {[%clk 0:02:27]}  Nd7 {[%clk 0:02:36]} 15. Bxg7 {[%clk 0:02:22]}  Kxg7 {[%clk 0:02:37]} 16. e4 {[%clk 0:02:22]}  Nc5 {[%clk 0:02:36]} 17. Qe3 {[%clk 0:02:21]}  e5 {[%clk 0:02:33]} 18. dxe6 {[%clk 0:02:18]}  Bxe6 {[%clk 0:02:29]} 19. Rad1 {[%clk 0:02:14]}  Qc7 {[%clk 0:02:25]} 20. Qd4+ {[%clk 0:02:12]}  Kg8 {[%clk 0:02:25]} 21. Qe3 {[%clk 0:02:03]}  a4 {[%clk 0:02:21]} 22. Nd4 {[%clk 0:02:02]}  a3 {[%clk 0:02:17]} 23. Nb5 {[%clk 0:02:00]}  Qa5 {[%clk 0:02:10]} 24. bxa3 {[%clk 0:01:58]}  bxa3 {[%clk 0:02:09]} 25. Nxd6 {[%clk 0:01:50]}  a2 {[%clk 0:02:06]} 26. h4 {[%clk 0:01:48]}  Qa3 {[%clk 0:01:54]} 27. Qd4 {[%clk 0:01:45]}  Nb3 {[%clk 0:01:35]} 28. Qf6 {[%clk 0:01:44]}  a1=Q {[%clk 0:01:32]} 29. Rxa1 {[%clk 0:01:43]}  Qxd6 {[%clk 0:01:26]} 30. Rad1 {[%clk 0:01:19]}  Nd2 {[%clk 0:00:56]} 31. Qb2 {[%clk 0:00:57]}  Rfd8 {[%clk 0:00:51]} 32. c5 {[%clk 0:00:42]}  Qd4 {[%clk 0:00:50]} 33. Qxd4 {[%clk 0:00:37]}  Rxd4 {[%clk 0:00:48]} 34. c6 {[%clk 0:00:35]}  Rc8 {[%clk 0:00:47]} 0-1


[Site "https://www.chess.com"]

[Event "Titled Tuesday Blitz June 21 Late 2022"]
[White "Souleidis, Georgios"]
[Black "Melaugh, Shane"]
[WhiteFideId "4206827"]
[BlackFideId "2509580"]
[WhiteElo "2401"]
[BlackElo "1972"]
[Result "0-1"]
[Round "04"]
[TimeControl "180+1"]
[Date "2022.06.22"]
[WhiteClock "0:00:01"]
[BlackClock "0:00:32"]

1. e4 {[%clk 0:02:58]}  e6 {[%clk 0:03:00]} 2. d4 {[%clk 0:02:58]}  d5 {[%clk 0:03:00]} 3. exd5 {[%clk 0:02:59]}  exd5 {[%clk 0:03:01]} 4. Nf3 {[%clk 0:02:59]}  c6 {[%clk 0:03:01]} 5. Bd3 {[%clk 0:02:59]}  Bd6 {[%clk 0:03:02]} 6. c3 {[%clk 0:02:59]}  Ne7 {[%clk 0:03:02]} 7. Qc2 {[%clk 0:02:59]}  Bg4 {[%clk 0:03:02]} 8. Nbd2 {[%clk 0:02:59]}  Nd7 {[%clk 0:02:58]} 9. h3 {[%clk 0:02:58]}  Bh5 {[%clk 0:02:56]} 10. a4 {[%clk 0:02:59]}  Nf6 {[%clk 0:02:55]} 11. O-O {[%clk 0:02:58]}  O-O {[%clk 0:02:52]} 12. Re1 {[%clk 0:02:59]}  Bg6 {[%clk 0:02:50]} 13. Ne5 {[%clk 0:02:53]}  Bxd3 {[%clk 0:02:47]} 14. Qxd3 {[%clk 0:02:54]}  Ng6 {[%clk 0:02:45]} 15. Nxg6 {[%clk 0:02:33]}  hxg6 {[%clk 0:02:46]} 16. Nf3 {[%clk 0:02:33]}  Ne4 {[%clk 0:02:42]} 17. c4 {[%clk 0:02:26]}  Re8 {[%clk 0:02:34]} 18. c5 {[%clk 0:02:21]}  Bc7 {[%clk 0:02:30]} 19. b4 {[%clk 0:02:21]}  Qf6 {[%clk 0:02:12]} 20. Ra2 {[%clk 0:02:13]}  Re6 {[%clk 0:01:55]} 21. Rae2 {[%clk 0:02:12]}  Rae8 {[%clk 0:01:55]} 22. Bb2 {[%clk 0:01:37]}  g5 {[%clk 0:01:54]} 23. Ne5 {[%clk 0:01:35]}  Bxe5 {[%clk 0:01:23]} 24. dxe5 {[%clk 0:01:35]}  Qg6 {[%clk 0:01:08]} 25. g4 {[%clk 0:00:40]}  a5 {[%clk 0:01:02]} 26. f3 {[%clk 0:00:36]}  Ng3 {[%clk 0:01:02]} 27. Rd2 {[%clk 0:00:26]}  Qh6 {[%clk 0:01:00]} 28. Kg2 {[%clk 0:00:24]}  Qh4 {[%clk 0:00:57]} 29. Rdd1 {[%clk 0:00:05]}  Rh6 {[%clk 0:00:56]} 30. Rh1 {[%clk 0:00:06]}  Nxh1 {[%clk 0:00:56]} 31. Rxh1 {[%clk 0:00:07]}  Rhe6 {[%clk 0:00:53]} 32. bxa5 {[%clk 0:00:06]}  Ra8 {[%clk 0:00:39]} 33. Bc3 {[%clk 0:00:05]}  f6 {[%clk 0:00:35]} 34. Qf5 {[%clk 0:00:04]}  Rae8 {[%clk 0:00:33]} 35. Re1 {[%clk 0:00:02]}  Qh7 {[%clk 0:00:32]} 36. Qxh7+ {[%clk 0:00:01]}  Kxh7 {[%clk 0:00:32]} 0-1


[Site "https://www.chess.com"]